bitfinex/quotes_ETHUSD_20250406
["timestamp","ask_amount","ask_price","bid_price","bid_amount"]
[1743934279287,6.91542,1787.8,1787.7,5.201]
[1743934279483,8.5163058,1787.8,1787.7,5.646695]
[1743934281988,4.6008858,1787.8,1787.7,5.646695]
[1743934282386,3.0,1787.8,1787.7,5.646695]
[1743934285088,6.91542,1787.8,1787.7,5.646695]
[1743934285290,3.0,1787.8,1787.7,5.646695]
[1743934287467,6.91542,1787.8,1787.7,5.646695]
[1743934290187,6.91542,1787.8,1787.7,0.445695]
[1743934290385,8.6641811,1787.8,1787.7,0.445695]
[1743934290696,3.91605,1787.6,1787.5,5.202]
[1743934290900,4.47835,1787.6,1787.5,0.44663087]
[1743934291100,3.9163,1787.4,1787.3,42.109]
[1743934291315,3.0,1787.4,1787.3,5.65117283]
[1743934295500,4.47781,1787.8,1787.4,0.8195]
[1743934295672,0.447781,1787.7,1787.5,0.44905463]
[1743934295873,6.91552,1787.8,1787.5,0.44905463]
[1743934296273,3.91573,1787.7,1787.5,0.44905463]
[1743934298084,6.91548,1787.8,1787.5,0.44905463]
[1743934299506,10.83106,1787.8,1787.5,0.44905463]
[1743934299709,3.9157,1787.7,1787.5,0.44905463]
[1743934301304,6.91548,1787.8,1787.5,0.44905463]
[1743934301607,3.0,1787.8,1787.5,0.44905463]
[1743934302414,6.91543,1787.8,1787.5,0.44905463]
[1743934303377,12.0174711,1787.8,1787.5,0.44905463]
[1743934304076,8.1018911,1787.8,1787.5,0.44905463]
[1743934305308,12.0174711,1787.8,1787.5,0.44905463]
[1743934307083,3.91571,1787.7,1787.5,0.44905463]
[1743934307820,6.91543,1787.8,1787.5,0.44905463]
[1743934308198,3.0,1787.8,1787.5,0.44905463]
[1743934309521,6.91543,1787.8,1787.5,0.44905463]
[1743934312531,10.83102,1787.8,1787.5,0.44905463]
[1743934314532,6.91543,1787.8,1787.5,0.44905463]
[1743934317103,3.91568,1787.7,1787.5,0.44905463]
[1743934321724,3.91568,1787.7,1787.6,0.44757652]
[1743934321927,3.91568,1787.7,1787.3,6.0129]
[1743934322113,3.91568,1787.7,1787.4,0.44851265]
[1743934322313,3.91587,1787.6,1787.5,5.187]
[1743934322514,3.91587,1787.6,1787.5,5.63504456]
[1743934323203,3.91568,1787.7,1787.5,5.63504456]
[1743934324002,3.91544,1787.8,1787.5,5.63504456]
[1743934324202,4.8019051,1787.8,1787.5,5.63504456]
[1743934324403,8.7174951,1787.8,1787.5,5.63504456]
[1743934325438,8.7174951,1787.8,1787.5,6.44494456]
[1743934325836,7.83103,1787.8,1787.5,6.44494456]
[1743934326039,0.47168101,1787.9,1787.5,6.44494456]
[1743934326215,4.38698101,1787.9,1787.5,10.36094456]
[1743934327539,4.38698101,1787.9,1787.5,6.44494456]
[1743934328139,3.91554,1787.8,1787.5,6.44494456]
[1743934331649,4.94925101,1787.9,1787.5,6.44494456]
[1743934332516,4.52757,1787.9,1787.5,6.44494456]
[1743934334133,0.05,1787.9,1787.6,3.91583]
[1743934334329,0.05,1787.9,1787.7,0.44630074]
[1743934334724,0.05,1787.9,1787.7,1.27660074]
[1743934335658,0.46009233,1787.9,1787.7,1.27660074]
[1743934336153,0.05,1787.9,1787.7,1.27660074]
[1743934338552,3.91542,1787.8,1787.7,0.44630074]
[1743934339347,4.361839,1787.9,1787.7,0.44630074]
[1743934342531,0.05,1787.9,1787.7,0.44630074]
[1743934343663,0.05,1787.9,1787.7,4.36194074]
[1743934344035,0.05,1787.9,1787.8,0.8303]
[1743934344466,0.05,1787.9,1787.8,5.19094714]
[1743934344646,0.05,1787.9,1787.8,5.24687514]
[1743934345354,0.05,1787.9,1787.8,5.19094714]
[1743934345758,0.05,1787.9,1787.8,5.24687514]
[1743934345964,0.05,1787.9,1787.8,5.19094714]
[1743934347868,0.05,1787.9,1787.8,4.36064714]
[1743934348063,0.05,1787.9,1787.8,5.12904714]
[1743934353501,0.05,1787.9,1787.8,5.18496994]
[1743934353879,0.05,1787.9,1787.8,5.12904714]
[1743934359827,0.05,1787.9,1787.8,10.30704714]
[1743934360923,0.05,1787.9,1787.8,10.36297182]
[1743934362029,0.05,1787.9,1787.8,10.30704714]
[1743934365858,0.05,1787.9,1787.8,9.53764714]
[1743934368558,0.05,1787.9,1787.8,9.59357072]
[1743934372169,0.05,1787.9,1787.8,9.53764714]
[1743934372333,0.05,1787.9,1787.8,9.59357051]
[1743934374326,0.05,1787.9,1787.8,9.53764714]
[1743934375155,0.05,1787.9,1787.8,10.90644714]
[1743934375362,0.05,1787.9,1787.8,17.06644714]
[1743934376459,0.05,1787.9,1787.8,20.06644714]
[1743934381265,0.5623,1788.6,1788.5,3.91389]
[1743934381445,0.5623,1788.6,1788.5,9.09089]
[1743934381659,0.5623,1788.8,1788.7,3.91342]
[1743934382026,0.5623,1788.8,1788.7,4.31534013]
[1743934384471,0.5623,1788.8,1788.7,0.40192013]
[1743934384879,0.5623,1788.8,1788.6,3.91352]
[1743934385173,0.5623,1788.8,1788.7,0.40192013]
[1743934386025,0.5623,1788.8,1788.7,4.31537013]
[1743934386261,0.6123,1788.9,1788.8,3.91323]
[1743934386654,0.6123,1788.9,1788.8,4.31468292]
[1743934387365,0.05,1788.9,1788.8,4.31468292]
[1743934396106,0.05,1788.9,1788.8,4.37057534]
[1743934396302,0.05,1788.9,1788.8,4.31468292]
[1743934402908,0.05,1788.9,1788.8,4.86468292]
[1743934403084,0.05,1788.9,1788.8,5.68478292]
[1743934403920,0.05,1788.9,1788.8,11.90066587]
[1743934404077,0.05,1788.9,1788.8,11.84478292]
[1743934410423,0.05,1788.9,1788.8,11.29478292]
[1743934410602,0.05,1788.9,1788.8,15.65668292]
[1743934413949,0.05,1788.9,1788.8,9.49668292]
[1743934416837,0.6123,1788.9,1788.8,9.49268292]
[1743934417038,0.6123,1788.9,1788.8,0.40145292]
[1743934417248,3.96301,1788.9,1788.8,0.40145292]
[1743934417564,8.312912,1788.9,1788.8,0.40145292]
[1743934421015,7.52531,1788.9,1788.8,0.40145292]
[1743934424161,3.6123,1788.9,1788.8,0.40145292]
[1743934431181,7.52531,1788.9,1788.8,0.40145292]
[1743934431381,3.6123,1788.9,1788.8,0.40145292]
[1743934436927,7.52531,1788.9,1788.8,0.40145292]
[1743934440736,0.05,1788.9,1788.8,4.31468292]
[1743934440909,0.05,1788.9,1788.8,5.13108292]
[1743934441096,0.05,1788.9,1788.8,11.84108292]
[1743934442812,0.05,1788.9,1788.8,16.84108292]
[1743934443132,0.05,1788.9,1788.8,16.29108292]
[1743934446240,0.05,1788.9,1788.8,10.13108292]
[1743934448350,0.05,1788.9,1788.8,10.68108292]
[1743934452153,0.05,1788.9,1788.8,16.84108292]
[1743934452364,0.05,1788.9,1788.8,21.48708292]
[1743934453034,0.05,1788.9,1788.8,20.67368292]
[1743934455165,0.05,1788.9,1788.8,15.67368292]
[1743934455371,0.05,1788.9,1788.8,16.49938292]
[1743934457663,0.05,1788.9,1788.8,15.67368292]
[1743934457959,0.05,1788.9,1788.8,9.51368292]
[1743934458561,0.05,1788.9,1788.8,9.56957551]
[1743934458753,0.05,1788.9,1788.8,10.65570914]
[1743934458954,0.05,1788.9,1788.8,9.56957551]
[1743934460469,0.05,1788.9,1788.8,10.94527551]
[1743934460656,0.05,1788.9,1788.8,10.88938292]
[1743934462266,0.05,1788.9,1788.8,9.51368292]
[1743934462666,0.05,1788.9,1788.8,9.56957489]
[1743934464379,0.05,1788.9,1788.8,9.51368292]
[1743934465995,0.05,1788.9,1788.8,9.56957489]
[1743934466456,0.05,1788.9,1788.8,10.37607489]
[1743934467942,0.05,1788.9,1788.8,15.37607489]
[1743934468146,0.05,1788.9,1788.8,15.32018292]
[1743934472477,0.05,1788.9,1788.8,51.38468292]
[1743934482116,0.05,1788.9,1788.8,14.50868292]
[1743934488327,0.6123,1788.9,1788.8,9.31468292]
[1743934488504,0.6123,1788.9,1788.8,14.50668292]
[1743934488689,0.6123,1788.9,1788.8,9.31468292]
[1743934488922,0.6123,1788.9,1788.8,14.50668292]
[1743934490120,0.6123,1788.9,1788.8,10.59345292]
[1743934492433,0.6123,1788.9,1788.8,5.40145292]
[1743934492734,0.6123,1788.9,1788.8,10.59245292]
[1743934496240,3.96301,1788.9,1788.8,5.40145292]
[1743934496404,4.921611,1788.9,1788.8,10.59045292]
[1743934498448,7.921611,1788.9,1788.8,10.59045292]
[1743934498799,7.921611,1788.9,1788.8,5.40145292]
[1743934500555,7.921611,1788.9,1788.8,0.40145292]
[1743934501423,3.91346,1788.7,1788.4,5.188]
[1743934501733,0.5623,1788.6,1788.4,5.188]
[1743934503262,0.5623,1788.6,1788.3,3.9143]
[1743934503468,0.5623,1788.6,1788.4,5.19]
[1743934505965,4.47599,1788.6,1788.4,5.19]
[1743934507041,0.5623,1788.6,1788.4,5.19]
[1743934508171,0.5623,1788.6,1788.5,0.37316691]
[1743934509758,4.359421,1788.9,1788.5,0.37316691]
[1743934509959,3.0,1788.8,1788.5,4.28692691]
[1743934510136,0.6123,1788.9,1788.6,7.82712]
[1743934510340,0.6123,1788.9,1788.7,4.28554103]
[1743934510541,0.6123,1788.9,1788.8,5.19]
[1743934510763,0.6123,1788.9,1788.8,5.56166362]
[1743934511083,0.05,1788.9,1788.8,5.56166362]
[1743934511376,0.05,1788.9,1788.8,9.47489362]
[1743934511878,0.05,1788.9,1788.8,5.56166362]
[1743934515083,0.6123,1788.9,1788.8,0.37166362]
[1743934515238,0.6123,1788.9,1788.8,5.56766362]
[1743934515585,0.6123,1788.9,1788.8,5.56604965]
[1743934518480,0.05,1788.9,1788.8,5.56604965]
[1743934519838,0.05,1788.9,1788.8,9.47927965]
[1743934520383,0.05,1788.9,1788.8,9.5351802]
[1743934520541,0.05,1788.9,1788.8,10.3283802]
[1743934522165,0.05,1788.9,1788.8,10.27247965]
[1743934525146,0.05,1788.9,1788.8,10.32836627]
[1743934525985,0.05,1788.9,1788.8,10.27247965]
[1743934528189,0.05,1788.9,1788.8,5.07647965]
[1743934528486,0.05,1788.9,1788.8,10.32537113]
[1743934528653,0.05,1788.9,1788.8,10.26947965]
[1743934528853,0.05,1788.9,1788.8,10.3253666]
[1743934529381,0.05,1788.9,1788.8,10.8753666]
[1743934529681,0.05,1788.9,1788.8,10.81947965]
[1743934536825,0.05,1788.9,1788.8,47.69647965]
[1743934544141,0.05,1788.9,1788.8,41.16027965]
[1743934544348,0.05,1788.9,1788.8,46.35627965]
[1743934546362,0.6123,1788.9,1788.8,41.16027965]
[1743934546563,0.6123,1788.9,1788.8,46.35627965]
[1743934546854,0.6123,1788.9,1788.8,42.44404965]
[1743934549065,0.6123,1788.9,1788.8,46.35727965]
[1743934550572,0.05,1788.9,1788.8,46.35727965]
[1743934559779,0.6123,1788.9,1788.8,46.35727965]
[1743934559991,0.6123,1788.9,1788.8,37.24704965]
[1743934560276,0.6123,1788.9,1788.8,42.44104965]
[1743934560971,0.6123,1788.9,1788.8,5.56404965]
[1743934566103,1.36481,1788.9,1788.8,0.37004965]
[1743934566314,1.36481,1788.9,1788.8,5.56004965]
[1743934566472,5.27782,1788.9,1788.8,0.37004965]
[1743934566875,8.27782,1788.9,1788.8,0.37004965]
[1743934567097,8.82782,1788.9,1788.8,0.37004965]
[1743934567411,7.47619,1788.5,1788.4,36.881]
[1743934567558,8.61518,1788.5,1788.4,36.881]
[1743934567762,8.61518,1788.5,1788.3,5.197]
[1743934567763,3.91411,1788.4,1788.3,5.197]
[1743934567962,4.47641,1788.4,1788.3,5.57180848]
[1743934569575,4.47641,1788.4,1788.3,0.37480848]
[1743934569779,4.47641,1788.4,1787.9,3.91519]
[1743934569780,3.9145,1788.3,1788.1,5.198]
[1743934569981,0.5623,1788.2,1788.1,5.198]
[1743934582359,0.5623,1788.6,1788.2,3.91453]
[1743934582522,0.5623,1788.6,1788.3,3.91424]
[1743934582722,3.0,1788.7,1788.4,3.91411]
[1743934582925,4.34065054,1788.7,1788.5,0.37397409]
[1743934583361,4.34065054,1788.7,1788.5,5.57497409]
[1743934584824,1.34065054,1788.7,1788.5,9.48885409]
[1743934585055,3.5623,1788.8,1788.5,9.48885409]
[1743934586757,3.5623,1788.8,1788.5,9.48873409]
[1743934587577,3.0,1788.8,1788.5,9.48873409]
[1743934587881,3.0,1788.8,1788.6,0.7696]
[1743934588052,0.05,1788.9,1788.6,4.68324]
[1743934588383,0.05,1788.9,1788.8,4.68283]
[1743934588536,0.05,1788.9,1788.8,5.05540155]
[1743934591287,0.05,1788.9,1788.8,0.37257155]
[1743934591467,7.52531,1788.9,1788.8,0.37257155]
[1743934591666,3.91345,1788.7,1788.4,5.206]
[1743934592164,6.91326,1788.8,1788.5,0.37397409]
[1743934592374,8.39968098,1788.8,1788.5,5.57897409]
[1743934593667,3.0,1788.8,1788.5,9.49275409]
[1743934593872,3.0,1788.8,1788.5,10.31315409]
[1743934594934,3.0,1788.8,1788.5,10.31311409]
[1743934598036,3.91325,1788.8,1788.5,6.39937409]
[1743934598241,0.5623,1788.6,1788.5,0.37397409]
[1743934598543,7.5255,1788.9,1788.5,4.28776409]
[1743934598743,8.66933,1788.9,1788.5,4.28776409]
[1743934599442,0.05,1788.9,1788.6,0.8204]
[1743934599685,0.05,1788.9,1788.8,4.73363]
[1743934599880,0.05,1788.9,1788.8,9.94763]
[1743934600042,0.05,1788.9,1788.8,10.32020155]
[1743934610621,0.05,1788.9,1788.8,5.58057155]
[1743934625170,0.05,1788.9,1788.8,10.24660155]
[1743934631895,0.05,1788.9,1788.8,10.30249801]
[1743934632269,0.05,1788.9,1788.8,10.24660155]
[1743934633794,0.05,1788.9,1788.8,10.30249801]
[1743934634090,0.05,1788.9,1788.8,10.24660155]
[1743934638495,0.05,1788.9,1788.8,9.49380155]
[1743934639492,0.05,1788.9,1788.8,4.28580155]
[1743934639795,0.6123,1788.9,1788.8,5.55957155]
[1743934639997,8.31544197,1788.9,1788.8,0.37257155]
[1743934640210,3.91433,1788.3,1788.2,5.0]
[1743934640508,7.47663,1788.3,1788.2,5.0]
[1743934640662,8.615704,1788.3,1788.2,0.31307412]
[1743934640861,8.615704,1788.3,1788.0,5.204]
[1743934641098,8.615704,1788.3,1788.1,0.31354188]
[1743934642717,3.91455,1788.2,1788.1,0.31354188]
[1743934643196,8.615704,1788.3,1788.1,0.31354188]
[1743934643359,3.0,1788.3,1788.1,0.31354188]
[1743934643560,3.0,1788.3,1788.1,5.04980188]
[1743934646021,3.0,1788.3,1788.2,3.91455]
[1743934646554,4.47576,1788.7,1788.3,3.91425]
[1743934646759,3.0,1788.6,1788.4,5.205]
[1743934646959,3.447576,1788.6,1788.4,5.51754236]
[1743934648422,4.88659,1788.9,1788.4,10.19879236]
[1743934648839,7.88659,1788.9,1788.4,10.19879236]
[1743934649012,7.88659,1788.9,1788.5,3.9138]
[1743934649527,7.88659,1788.9,1788.6,0.31160717]
[1743934649857,3.91338,1788.8,1788.6,0.31160717]
[1743934650014,0.391338,1788.7,1788.6,0.31160717]
[1743934650224,0.391338,1788.7,1788.4,9.88625]
[1743934650428,3.91338,1788.8,1788.4,9.88625]
[1743934650629,3.91338,1788.8,1788.5,0.31217563]
[1743934652276,7.88659,1788.9,1788.5,4.22605563]
[1743934654578,11.79979,1788.9,1788.5,4.22605563]
[1743934655379,3.91324,1788.8,1788.5,4.22605563]
[1743934655680,5.093223,1788.8,1788.5,0.31217563]
[1743934655835,5.093223,1788.8,1788.6,5.201]
[1743934656177,5.093223,1788.8,1788.7,0.31124054]
[1743934657443,8.655523,1788.8,1788.7,0.31124054]
[1743934657776,4.47619,1788.5,1788.4,5.203]
[1743934658154,3.91426,1788.4,1788.2,10.206]
[1743934658365,3.91433,1788.3,1788.2,10.206]
[1743934658563,3.91433,1788.3,1788.2,5.0]
[1743934658888,4.47663,1788.3,1788.2,5.0]
[1743934659095,5.315719,1788.3,1788.2,5.0]
[1743934659296,3.9147,1788.2,1788.0,5.206]
[1743934659453,3.9147,1788.2,1787.8,3.91527]
[1743934659648,3.91485,1788.1,1787.9,5.208]
[1743934659878,3.91498,1788.0,1787.9,5.208]
[1743934660080,4.306335,1788.1,1787.9,5.208]
[1743934661095,3.91498,1788.0,1787.7,37.6736]
[1743934661399,3.91533,1787.9,1787.8,5.209]
[1743934661632,4.306828,1787.9,1787.7,42.093]
[1743934662213,6.91542,1787.8,1787.7,36.883]
[1743934662413,6.91542,1787.8,1787.3,4.70711]
[1743934662414,4.47847,1787.5,1787.3,5.214]
[1743934662709,3.91652,1787.3,1787.2,0.55]
[1743934664414,3.9163,1787.4,1787.2,0.55]
[1743934664614,8.317853,1787.5,1787.2,0.55]
[1743934664811,3.91632,1787.4,1787.2,0.55]
[1743934665410,3.91652,1787.3,1787.2,0.55]
[1743934665615,4.699804,1787.3,1787.2,0.55]
[1743934665908,0.783284,1787.3,1787.2,0.55]
[1743934666108,3.91632,1787.4,1787.2,0.55]
[1743934666690,8.317823,1787.5,1787.2,0.55]
[1743934667303,12.234033,1787.5,1787.2,0.55]
[1743934667894,3.91631,1787.4,1787.2,0.55]
[1743934669105,7.8328,1787.4,1787.2,0.55]
[1743934669308,0.78328,1787.3,1787.2,0.55]
[1743934670280,3.91631,1787.4,1787.2,0.55]
[1743934670479,7.83278,1787.4,1787.2,0.55]
[1743934670726,3.91652,1787.3,1787.2,0.55]
[1743934672021,3.91631,1787.4,1787.2,0.55]
[1743934672599,8.317823,1787.5,1787.2,0.55]
[1743934672804,0.8317823,1787.4,1787.2,0.55]
[1743934673138,0.8317823,1787.4,1787.3,0.31753849]
[1743934675302,7.7480823,1787.4,1787.3,0.31753849]
[1743934676033,8.3103823,1787.4,1787.3,0.31753849]
[1743934676832,7.74755823,1787.3,1787.2,0.55]
[1743934677000,8.85985823,1787.3,1787.2,0.55]
[1743934677637,8.30985823,1787.3,1787.2,0.55]
[1743934678202,8.71971081,1787.3,1787.2,0.55]
[1743934679545,7.74755823,1787.3,1787.2,0.55]
[1743934680045,3.83103823,1787.3,1787.2,0.55]
[1743934681431,7.74755823,1787.3,1787.2,0.55]
[1743934683081,3.83103823,1787.3,1787.2,0.55]
[1743934683363,3.0,1787.3,1787.2,0.55]
[1743934683734,3.91567,1787.7,1787.2,1.3288]
[1743934683735,6.9159,1787.6,1787.2,1.3288]
[1743934683925,6.9159,1787.6,1787.2,5.24541]
[1743934684123,6.9159,1787.6,1787.2,1.3288]
[1743934684375,0.5623,1786.8,1786.3,4.69739]
[1743934684552,3.0,1786.7,1786.3,4.6975]
[1743934684725,3.5623,1786.8,1786.3,4.6975]
[1743934684929,3.0,1786.8,1786.5,3.91827]
[1743934685129,3.5623,1787.0,1786.5,3.91827]
[1743934685331,3.91767,1786.8,1786.5,5.457]
[1743934685765,3.91793,1786.7,1786.5,5.457]
[1743934686138,7.83596,1786.7,1786.5,5.457]
[1743934686545,6.91805,1786.6,1786.5,5.457]
[1743934686767,3.0,1786.6,1786.5,5.457]
[1743934687092,7.609843,1786.6,1786.5,5.457]
[1743934687244,3.91834,1786.5,1786.1,0.8723]
[1743934687443,3.91834,1786.5,1786.2,5.451]
[1743934687956,3.91834,1786.5,1786.3,0.29485162]
[1743934688164,5.1273883,1786.5,1786.3,0.29485162]
[1743934688343,1.2090483,1786.5,1786.3,0.29485162]
[1743934688534,3.0,1786.6,1786.3,0.29485162]
[1743934689336,4.48123,1786.2,1786.1,0.05]
[1743934689601,7.48123,1786.2,1786.1,0.05]
[1743934689890,8.03123,1786.2,1786.1,0.05]
[1743934690674,8.03123,1786.2,1785.4,0.8240008]
[1743934690675,3.92044,1785.6,1785.4,0.0017008]
[1743934691167,3.92047,1785.5,1785.4,0.0017008]
[1743934691369,3.92044,1785.6,1785.4,0.0017008]
[1743934691669,0.5623,1785.7,1785.4,0.0017008]
[1743934691971,4.48244,1785.7,1785.4,0.0017008]
[1743934692151,10.83996,1785.8,1785.4,0.0017008]
[1743934692340,3.92023,1785.7,1785.4,0.0017008]
[1743934692540,3.9204,1785.6,1785.4,0.0017008]
[1743934692875,7.48277,1785.5,1785.4,0.0017008]
[1743934693080,7.48342,1785.2,1785.1,0.05]
[1743934693266,4.702737,1785.2,1785.1,0.05]
[1743934693569,0.5623,1785.5,1785.1,0.05]
[1743934693784,4.48279,1785.5,1785.1,0.05]
[1743934694134,0.5623,1785.5,1785.1,0.05]
[1743934694338,3.92109,1785.3,1785.1,5.859]
[1743934694554,3.92069,1785.4,1785.1,5.859]
[1743934694958,8.03342,1785.2,1785.1,0.05]
[1743934695159,7.48342,1785.2,1785.1,0.05]
[1743934695365,8.03342,1785.2,1785.1,0.05]
[1743934697315,8.03342,1785.2,1785.1,0.32702249]
[1743934697521,7.48342,1785.2,1785.1,0.32702249]
[1743934697920,3.5623,1785.2,1785.1,0.32702249]
[1743934699031,3.0,1785.2,1785.1,0.32702249]
[1743934699446,6.92112,1785.2,1785.1,0.32702249]
[1743934699752,3.0,1785.2,1785.1,0.32702249]
[1743934700228,1.310599,1785.4,1785.1,6.11102249]
[1743934700541,8.231429,1785.4,1785.1,6.11102249]
[1743934701105,3.92093,1785.3,1785.1,6.11102249]
[1743934701649,9.8514354,1785.5,1785.1,6.11102249]
[1743934701801,11.28485094,1785.5,1785.1,6.11102249]
[1743934702145,5.9309554,1785.5,1785.1,10.03231249]
[1743934702301,5.9309554,1785.5,1785.1,10.03218249]
[1743934702502,3.92042,1785.6,1785.1,13.95342249]
[1743934702979,3.0,1785.7,1785.2,3.921]
[1743934703106,6.92015,1785.7,1785.2,3.921]
[1743934703305,3.9196,1785.9,1785.4,3.92057]
[1743934703524,3.91982,1785.8,1785.5,6.03885427]
[1743934704664,4.48255,1785.6,1785.5,0.27185427]
[1743934705160,4.89413971,1785.6,1785.5,0.27185427]
[1743934705320,9.07555868,1785.6,1785.5,0.27185427]
[1743934705515,3.0,1785.4,1785.1,0.8549]
[1743934705719,3.0,1785.4,1785.2,0.27472985]
[1743934711341,3.0,1785.4,1785.3,0.55]
[1743934711565,3.0,1785.4,1785.3,0.8240581]
[1743934712178,5.10166897,1785.6,1785.3,0.8240581]
[1743934712481,3.92025,1785.6,1785.4,5.73]
[1743934712869,6.92025,1785.6,1785.5,0.27311988]
[1743934714105,7.90510887,1785.6,1785.5,0.27311988]
[1743934714382,6.92069,1785.4,1785.3,0.55]
[1743934714582,8.004813,1785.4,1785.3,0.55]
[1743934718185,8.004813,1785.4,1785.3,0.82426065]
[1743934720383,3.92015,1785.7,1785.3,5.50731065]
[1743934720556,3.92055,1785.5,1785.3,1.58646065]
[1743934720744,3.92025,1785.6,1785.3,1.58646065]
[1743934721192,7.84071,1785.6,1785.3,1.58646065]
[1743934721352,3.92054,1785.5,1785.3,1.58646065]
[1743934721671,4.704619,1785.5,1785.3,1.58646065]
[1743934722085,6.92003,1785.7,1785.3,1.58646065]
[1743934722301,6.92003,1785.7,1785.3,5.50735065]
[1743934723199,3.0,1785.7,1785.3,5.50721065]
[1743934723360,7.83981,1785.8,1785.4,3.92067]
[1743934723557,7.83981,1785.8,1785.5,5.676]
[1743934723758,4.704031,1785.7,1785.6,0.27123349]
[1743934728071,3.91981,1785.8,1785.6,0.27123349]
[1743934728277,3.91981,1785.8,1785.6,1.05233349]
[1743934729924,3.91949,1786.0,1785.6,4.97250349]
[1743934730087,3.91949,1786.0,1785.6,1.05233349]
[1743934730290,3.0,1785.9,1785.6,1.05233349]
[1743934730777,3.0,1785.9,1785.6,4.97257349]
[1743934731172,3.0,1785.9,1785.6,8.89271349]
[1743934731406,3.91854,1786.4,1785.6,8.89271349]
[1743934731407,3.91893,1786.2,1785.7,0.84359919]
[1743934731594,3.91893,1786.2,1785.8,4.70726]
[1743934731798,3.91893,1786.2,1785.9,5.643]
[1743934732114,3.0,1786.2,1785.9,9.56249]
[1743934732277,3.0,1786.2,1786.1,0.7876]
[1743934732687,3.0,1786.2,1786.1,1.05826101]
[1743934733287,3.91887,1786.3,1786.1,1.05826101]
[1743934733579,5.002607,1786.3,1786.1,1.05826101]
[1743934734403,1.083737,1786.3,1786.1,1.05826101]
[1743934734710,5.002487,1786.3,1786.1,1.05826101]
[1743934736514,3.0,1786.2,1786.1,1.05826101]
[1743934737017,6.91893,1786.2,1786.1,5.89366101]
[1743934737179,8.1110717,1786.2,1786.1,5.89366101]
[1743934737380,8.1110717,1786.2,1786.1,0.27066101]
[1743934737794,8.6733717,1786.2,1786.1,0.27066101]
[1743934738213,8.6733717,1786.2,1785.9,5.619]
[1743934738214,3.91937,1786.0,1785.9,5.619]
[1743934738414,0.783853,1786.0,1785.9,5.619]
[1743934738606,6.91916,1786.1,1785.9,5.619]
[1743934739323,10.83848,1786.1,1785.9,5.619]
[1743934739529,6.91916,1786.1,1785.9,5.619]
[1743934739685,10.83848,1786.1,1785.9,5.619]
[1743934739886,3.91937,1786.0,1785.9,5.619]
[1743934740199,3.91981,1785.8,1785.7,5.611]
[1743934741116,6.91981,1785.8,1785.7,5.611]
[1743934743326,3.0,1785.8,1785.7,5.611]
[1743934743728,6.91981,1785.8,1785.7,5.611]
[1743934743892,3.0,1785.8,1785.7,5.611]
[1743934744410,3.69196,1785.8,1785.7,5.611]
[1743934744731,3.0,1785.8,1785.7,5.611]
[1743934745245,6.91937,1786.0,1785.7,5.595]
[1743934745400,3.91959,1785.9,1785.7,5.595]
[1743934745801,3.0,1786.0,1785.8,0.7726]
[1743934747943,3.0,1786.0,1785.9,0.27296525]
[1743934748137,3.0,1786.0,1785.8,4.69236]
[1743934748324,3.0,1786.0,1785.9,0.27296525]
[1743934748523,3.0,1786.0,1785.8,4.69236]
[1743934748739,3.0,1786.0,1785.9,0.27296525]
[1743934748944,3.0,1786.0,1785.8,4.69236]
[1743934749150,3.0,1786.0,1785.9,0.27296525]
[1743934749314,3.0,1786.0,1785.8,4.69236]
[1743934749516,3.0,1786.0,1785.9,0.27296525]
[1743934749838,3.0,1786.0,1785.8,4.69236]
[1743934750040,3.0,1786.0,1785.9,0.27296525]
[1743934750449,3.91959,1785.9,1785.8,0.7726]
[1743934750943,6.91957,1786.0,1785.8,0.7726]
[1743934751149,3.0,1786.0,1785.8,0.7726]
[1743934753325,6.91945,1786.0,1785.8,0.7726]
[1743934754449,3.91959,1785.9,1785.5,36.952]
[1743934754662,3.91959,1785.9,1785.6,5.562]
[1743934755755,3.91981,1785.8,1785.6,5.562]
[1743934755921,3.91959,1785.9,1785.6,5.562]
[1743934756317,7.83935,1785.9,1785.6,5.562]
[1743934756834,7.83933,1785.9,1785.6,5.562]
[1743934757030,3.91994,1785.8,1785.5,37.7568]
[1743934757242,3.91994,1785.8,1785.6,5.554]
[1743934759428,6.91984,1785.8,1785.6,5.554]
[1743934759627,4.33366075,1786.0,1785.6,9.47424]
[1743934759850,3.0,1785.9,1785.6,9.47424]
[1743934760667,3.91971,1785.9,1785.6,5.554]
[1743934760829,0.41423075,1786.0,1785.7,5.545]
[1743934760830,6.91996,1785.8,1785.7,5.545]
[1743934761165,10.83998,1785.8,1785.7,5.545]
[1743934761929,6.91996,1785.8,1785.7,5.545]
[1743934763060,6.91996,1785.8,1785.7,5.81870077]
[1743934770061,3.91939,1786.0,1785.7,5.81870077]
[1743934770393,3.0,1785.9,1785.7,5.81870077]
[1743934771277,3.0,1785.9,1785.7,9.73872077]
[1743934771881,3.91961,1785.9,1785.7,5.81870077]
[1743934772088,3.0,1785.9,1785.7,5.81870077]
[1743934772326,6.91968,1785.9,1785.7,5.81870077]
[1743934775631,3.91981,1785.8,1785.7,5.81870077]
[1743934775919,3.91981,1785.8,1785.7,5.76970077]
[1743934779289,8.003536,1785.9,1785.7,5.76970077]
[1743934781423,3.0,1785.9,1785.7,5.76970077]
[1743934781630,6.91959,1785.9,1785.7,5.76970077]
[1743934781934,3.91981,1785.8,1785.7,0.27370077]
[1743934782132,3.91981,1785.8,1785.7,5.74970077]
[1743934782300,3.91981,1785.8,1785.7,5.476]
[1743934782503,3.91981,1785.8,1785.7,5.74909344]
[1743934782704,6.91959,1785.9,1785.7,5.74909344]